fUSD/lending_fUSD_20240918
["ID","MTS","AMOUNT","RATE_DAILY","PERIOD"]
[338495345,1726703446913,-214308.00625,0.000139,2]
[338495346,1726703446922,-186.27449136,0.000139,2]
[338495347,1726703446932,-500.0,0.00013904,2]
[338495348,1726703446941,-500.0,0.00013904,2]
[338495349,1726703446950,-214.13293717,0.00013909,2]
[338495350,1726703446960,-791.51331466,0.00013965,2]
[338495351,1726703446970,-192.582941,0.00013973,2]
[338495352,1726703446980,-152.33,0.0001399,2]
[338495353,1726703446989,-30744.9302779,0.00014,4]
[338495354,1726703446999,-368.59,0.00014,2]
[338495355,1726703447008,-255.0,0.00014008,2]
[338495356,1726703447019,-150.0,0.00014059,2]
[338495357,1726703447027,-810.0,0.00014062,2]
[338495358,1726703447037,-150.387,0.00014062,2]
[338495359,1726703447047,-557.0,0.00014062,2]
[338495360,1726703447056,-931.0,0.00014062,2]
[338495361,1726703447067,-1917.0,0.00014062,2]
[338495362,1726703447082,-248.0,0.00014062,2]
[338495363,1726703447090,-806.0,0.00014062,2]
[338495364,1726703447100,-258.65,0.00014152,2]
[338495365,1726703447110,-180.43,0.00014195,2]
[338495366,1726703447120,-1058.99785284,0.0001423,2]
[338495367,1726703447130,-214.13293717,0.00014239,2]
[338495368,1726703447140,-400.0,0.000143,2]
[338495369,1726703447149,-20000.000001,0.00014365,2]
[338495370,1726703447162,-150.0,0.0001442,2]
[338495371,1726703447172,-4102.3979649,0.0001448,2]
[338495372,1726703447182,-152.33,0.0001451,2]
[338495373,1726703447192,-796.0,0.00014512,2]
[338495374,1726703447202,-128792.07922027,0.0001452,2]
[338495375,1726703447214,-1189.02918722,0.0001452,2]
[338495376,1726703447225,-508.07079341,0.0001452,2]
[338495377,1726703447245,-1417.56443875,0.0001452,2]
[338495378,1726703447257,-4639.58592015,0.0001452,2]
[338495379,1726703447267,-500.0,0.0001452,2]
[338495380,1726703447277,-500.0,0.0001452,2]
[338495381,1726703447286,-500.0,0.0001452,2]
[338495382,1726703447296,-500.0,0.0001452,2]
[338495383,1726703447306,-500.0,0.0001452,2]
[338495384,1726703447315,-500.0,0.0001452,2]
[338495385,1726703447325,-500.0,0.0001452,2]
[338495386,1726703447335,-500.0,0.0001452,2]
[338495387,1726703447345,-500.0,0.0001452,2]
[338495388,1726703447355,-500.0,0.0001452,2]
[338495389,1726703447364,-500.0,0.0001452,2]
[338495390,1726703447374,-500.0,0.0001452,2]
[338495391,1726703447384,-500.0,0.0001452,2]
[338495392,1726703447393,-534.55737496,0.0001452,2]
[338495393,1726703447404,-500.0,0.0001452,2]
[338495394,1726703447413,-500.0,0.0001452,2]
[338495395,1726703447423,-500.0,0.0001452,2]
[338495396,1726703447434,-1000.0,0.0001452,2]
[338495397,1726703447444,-500.0,0.0001452,2]
[338495398,1726703447453,-500.0,0.0001452,2]
[338495399,1726703447462,-500.0,0.0001452,2]
[338495400,1726703447471,-500.0,0.0001452,2]
[338495401,1726703447480,-500.0,0.0001452,2]
[338495402,1726703447491,-500.0,0.0001452,2]
[338495403,1726703447500,-500.0,0.0001452,2]
[338495404,1726703447510,-500.0,0.0001452,2]
[338495405,1726703447519,-500.0,0.0001452,2]
[338495406,1726703447529,-500.0,0.0001452,2]
[338495407,1726703447539,-500.0,0.0001452,2]
[338495408,1726703447548,-500.0,0.0001452,2]
[338495409,1726703447558,-500.0,0.0001452,2]
[338495410,1726703447569,-500.0,0.0001452,2]
[338495411,1726703447578,-500.0,0.0001452,2]
[338495412,1726703447588,-500.0,0.0001452,2]
[338495413,1726703447599,-152.47524974,0.0001452,2]
[338495414,1726703447609,-500.0,0.0001452,2]
[338495415,1726703447620,-500.0,0.0001452,2]
[338495416,1726703447644,-500.0,0.0001452,2]
[338495417,1726703447654,-500.0,0.0001452,2]
[338495418,1726703447664,-500.0,0.0001452,2]
[338495419,1726703447675,-500.0,0.0001452,2]
[338495420,1726703447685,-500.0,0.0001452,2]
[338495421,1726703447695,-500.0,0.0001452,2]
[338495422,1726703447706,-500.0,0.0001452,2]
[338495423,1726703447715,-500.0,0.0001452,2]
[338495424,1726703447725,-500.0,0.0001452,2]
[338495425,1726703447734,-500.0,0.0001452,2]
[338495426,1726703447744,-500.0,0.0001452,2]
[338495427,1726703447754,-300.0,0.0001452,2]
[338495428,1726703447763,-500.0,0.0001452,2]
[338495429,1726703447772,-500.0,0.0001452,2]
[338495430,1726703447781,-500.0,0.0001452,2]
[338495431,1726703447791,-500.0,0.0001452,2]
[338495432,1726703447801,-500.0,0.0001452,2]
[338495433,1726703447811,-500.0,0.0001452,2]
[338495434,1726703447822,-500.0,0.0001452,2]
[338495435,1726703447831,-500.0,0.0001452,2]
[338495436,1726703447841,-500.0,0.0001452,2]
[338495437,1726703447851,-500.0,0.0001452,2]
[338495438,1726703447861,-500.0,0.0001452,2]
[338495439,1726703447871,-500.0,0.0001452,2]
[338495440,1726703447880,-500.0,0.0001452,2]
[338495441,1726703447890,-500.0,0.0001452,2]
[338495442,1726703447899,-500.0,0.0001452,2]
[338495443,1726703447908,-500.0,0.0001452,2]
[338495444,1726703447918,-500.0,0.0001452,2]
[338495445,1726703447927,-551.35,0.0001452,2]
[338495446,1726703447936,-500.0,0.0001452,2]
[338495447,1726703447945,-500.0,0.0001452,2]
[338495448,1726703447954,-1939.22,0.0001452,2]
[338495449,1726703447964,-1411.73,0.0001452,2]
[338495450,1726703447973,-500.0,0.0001452,2]
[338495451,1726703447982,-500.0,0.0001452,2]
[338495452,1726703447991,-1874.02,0.0001452,2]
[338495453,1726703448001,-693.31,0.0001452,2]
[338495454,1726703448010,-500.0,0.0001452,2]
[338495455,1726703448019,-500.0,0.0001452,2]
[338495456,1726703448028,-1117.2,0.0001452,2]
[338495457,1726703448038,-847.69,0.0001452,2]
[338495458,1726703448046,-853.94,0.0001452,2]
[338495459,1726703448056,-500.0,0.0001452,2]
[338495460,1726703448067,-821.31,0.0001452,2]
[338495461,1726703448076,-500.0,0.0001452,2]
[338495462,1726703448086,-500.0,0.0001452,2]
[338495463,1726703448095,-1444.08,0.0001452,2]
[338495464,1726703448104,-500.0,0.0001452,2]
[338495465,1726703448113,-534.78,0.0001452,2]
[338495466,1726703448122,-500.0,0.0001452,2]
[338495467,1726703448132,-500.0,0.0001452,2]
[338495468,1726703448141,-500.0,0.0001452,2]
[338495469,1726703448151,-500.0,0.0001452,2]
[338495470,1726703448163,-500.0,0.0001452,2]
[338495471,1726703448173,-500.0,0.0001452,2]
[338495472,1726703448183,-500.0,0.0001452,2]
[338495473,1726703448192,-500.0,0.0001452,2]
[338495474,1726703448203,-500.0,0.0001452,2]
[338495475,1726703448213,-2013.69,0.0001452,2]
[338495476,1726703448222,-500.0,0.0001452,2]
[338495477,1726703448234,-979.73,0.0001452,2]
[338495478,1726703448244,-500.0,0.0001452,2]
[338495479,1726703448254,-500.0,0.0001452,2]
[338495480,1726703448264,-500.0,0.0001452,2]
[338495481,1726703448274,-256.26322863,0.0001452,2]
[338495482,1726703448284,-612.86366917,0.0001452,2]
[338495483,1726703448294,-1896.37,0.0001452,2]
[338495484,1726703448303,-840.47,0.0001452,2]
[338495485,1726703448313,-500.0,0.0001452,2]
[338495486,1726703448335,-500.0,0.0001452,2]
[338495487,1726703448345,-534.74,0.0001452,2]
[338495488,1726703448356,-500.0,0.0001452,2]
[338495489,1726703448365,-500.0,0.0001452,2]
[338495490,1726703448375,-911.7,0.0001452,2]
[338495491,1726703448386,-500.0,0.0001452,2]
[338495492,1726703448396,-500.0,0.0001452,2]
[338495493,1726703448406,-1113.37,0.0001452,2]
[338495494,1726703448416,-500.0,0.0001452,2]
[338495495,1726703448426,-707.16,0.0001452,2]
[338495496,1726703448436,-500.0,0.0001452,2]
[338495497,1726703448446,-1447.05,0.0001452,2]
[338495498,1726703448455,-500.0,0.0001452,2]
[338495499,1726703448466,-1353.88,0.0001452,2]
[338495500,1726703448475,-500.0,0.0001452,2]
[338495501,1726703448485,-567.35,0.0001452,2]
[338495502,1726703448495,-2774.03,0.0001452,2]
[338495503,1726703448505,-1687.71,0.0001452,2]
[338495504,1726703448515,-500.0,0.0001452,2]
[338495505,1726703448525,-500.0,0.0001452,2]
[338495506,1726703448534,-500.0,0.0001452,2]
[338495507,1726703448543,-2074.92,0.0001452,2]
[338495508,1726703448554,-1373.03,0.0001452,2]
[338495509,1726703448563,-500.0,0.0001452,2]
[338495510,1726703448576,-500.0,0.0001452,2]
[338495511,1726703448586,-1203.51,0.0001452,2]
[338495512,1726703448595,-500.0,0.0001452,2]
[338495513,1726703448605,-254.00043791,0.0001452,2]
[338495514,1726703448615,-899.14,0.0001452,2]
[338495515,1726703448625,-594.04378034,0.0001452,2]
[338495516,1726703448634,-2269.34,0.0001452,2]
[338495517,1726703448644,-632.21,0.0001452,2]
[338495518,1726703448653,-1265.72,0.0001452,2]
[338495519,1726703448663,-157.39479269,0.0001452,2]
[338495520,1726703448672,-500.0,0.0001452,2]
[338495521,1726703448681,-3707.64,0.0001452,2]
[338495522,1726703448691,-500.0,0.0001452,2]
[338495523,1726703448700,-500.0,0.0001452,2]
[338495524,1726703448710,-830.28,0.0001452,2]
[338495525,1726703448720,-685.19,0.0001452,2]
[338495526,1726703448730,-500.0,0.0001452,2]
[338495527,1726703448739,-500.0,0.0001452,2]
[338495528,1726703448749,-1936.39,0.0001452,2]
[338495529,1726703449021,-1728.35,0.0001452,2]
[338495530,1726703449032,-500.0,0.0001452,2]
[338495531,1726703449041,-500.0,0.0001452,2]
[338495532,1726703449050,-1423.41,0.0001452,2]
[338495533,1726703449060,-500.0,0.0001452,2]
[338495534,1726703449071,-500.0,0.0001452,2]
[338495535,1726703449081,-500.0,0.0001452,2]
[338495536,1726703449091,-614.29,0.0001452,2]
[338495537,1726703449100,-500.0,0.0001452,2]
[338495538,1726703449109,-500.0,0.0001452,2]
[338495539,1726703449119,-1340.62,0.0001452,2]
[338495540,1726703449128,-604.72,0.0001452,2]
[338495541,1726703449138,-500.0,0.0001452,2]
[338495542,1726703449148,-500.0,0.0001452,2]
[338495543,1726703449161,-1627.16,0.0001452,2]
[338495544,1726703449170,-857.5,0.0001452,2]
[338495545,1726703449180,-500.0,0.0001452,2]
[338495546,1726703449191,-1031.43,0.0001452,2]
[338495547,1726703449200,-1149.97,0.0001452,2]
[338495548,1726703449210,-500.0,0.0001452,2]
[338495549,1726703449219,-401.53600717,0.0001452,2]
[338495550,1726703449230,-2042.83,0.0001452,2]
[338495551,1726703449240,-1673.54,0.0001452,2]
[338495552,1726703449250,-500.0,0.0001452,2]
[338495553,1726703449259,-500.0,0.0001452,2]
[338495554,1726703449269,-500.0,0.0001452,2]
[338495555,1726703449278,-2578.68,0.0001452,2]
[338495556,1726703449288,-1601.63,0.0001452,2]
[338495557,1726703449297,-1160.21,0.0001452,2]
[338495558,1726703449307,-500.0,0.0001452,2]
[338495559,1726703449318,-522.13,0.0001452,2]
[338495560,1726703449328,-500.0,0.0001452,2]
[338495561,1726703449338,-500.0,0.0001452,2]
[338495562,1726703449348,-506.29955203,0.0001452,2]
[338495563,1726703449357,-500.0,0.0001452,2]
[338495564,1726703449366,-500.0,0.0001452,2]
[338495565,1726703449376,-1263.18,0.0001452,2]
[338495566,1726703449385,-909.78,0.0001452,2]
[338495567,1726703449394,-500.0,0.0001452,2]
[338495568,1726703449405,-1083.78,0.0001452,2]
[338495569,1726703449414,-182.91916505,0.0001452,2]
[338495570,1726703449424,-500.0,0.0001452,2]
[338495571,1726703449434,-500.0,0.0001452,2]
[338495572,1726703449444,-561.26,0.0001452,2]
[338495573,1726703449453,-500.0,0.0001452,2]
[338495574,1726703449463,-513.92,0.0001452,2]
[338495575,1726703449473,-2498.94,0.0001452,2]
[338495576,1726703449483,-848.18,0.0001452,2]
[338495577,1726703449492,-553.95,0.0001452,2]
[338495578,1726703449502,-1954.81,0.0001452,2]
[338495579,1726703449511,-368.4772096,0.0001452,2]
[338495580,1726703449521,-500.0,0.0001452,2]
[338495581,1726703449531,-500.0,0.0001452,2]
[338495582,1726703449540,-500.0,0.0001452,2]
[338495583,1726703449550,-500.0,0.0001452,2]
[338495584,1726703449559,-500.0,0.0001452,2]
[338495585,1726703449570,-500.0,0.0001452,2]
[338495586,1726703449579,-714.82,0.0001452,2]
[338495587,1726703449589,-500.0,0.0001452,2]
[338495588,1726703449599,-500.0,0.0001452,2]
[338495589,1726703449609,-500.0,0.0001452,2]
[338495590,1726703449619,-500.0,0.0001452,2]
[338495591,1726703449628,-500.0,0.0001452,2]
[338495592,1726703449638,-500.0,0.0001452,2]
[338495593,1726703449648,-500.0,0.0001452,2]
[338495594,1726703449659,-1115.88,0.0001452,2]
[338495595,1726703449669,-1208.64,0.0001452,2]
[338495596,1726703449678,-763.98,0.0001452,2]
[338495597,1726703449688,-678.36,0.0001452,2]
[338495598,1726703449698,-1600.75,0.0001452,2]
[338495599,1726703449709,-741.81,0.0001452,2]
[338495600,1726703449719,-595.5103977,0.0001452,2]
[338495601,1726703449729,-501.01,0.0001452,2]
[338495602,1726703449739,-873.39,0.0001452,2]
[338495603,1726703449748,-585.45,0.0001452,2]
[338495604,1726703449758,-555.44,0.0001452,2]
[338495605,1726703449767,-500.0,0.0001452,2]
[338495606,1726703449778,-500.0,0.0001452,2]
[338495607,1726703449787,-1796.23,0.0001452,2]
[338495608,1726703449797,-803.38,0.0001452,2]
[338495609,1726703449806,-500.0,0.0001452,2]
[338495610,1726703449816,-500.0,0.0001452,2]
[338495611,1726703449826,-500.0,0.0001452,2]
[338495612,1726703449835,-500.0,0.0001452,2]
[338495613,1726703449845,-1381.69,0.0001452,2]
[338495614,1726703449856,-500.0,0.0001452,2]
[338495615,1726703449866,-1210.52,0.0001452,2]
[338495616,1726703449876,-876.33,0.0001452,2]
[338495617,1726703449886,-500.0,0.0001452,2]
[338495618,1726703449896,-1806.34,0.0001452,2]
[338495619,1726703449905,-1597.6,0.0001452,2]
[338495620,1726703449914,-500.0,0.0001452,2]
[338495621,1726703449923,-1166.18,0.0001452,2]
[338495622,1726703449933,-875.14,0.0001452,2]
[338495623,1726703449943,-958.9,0.0001452,2]
[338495624,1726703449953,-500.0,0.0001452,2]
[338495625,1726703449963,-501.46,0.0001452,2]
[338495626,1726703449972,-1039.64,0.0001452,2]
[338495627,1726703449981,-500.0,0.0001452,2]
[338495628,1726703449991,-500.0,0.0001452,2]
[338495629,1726703450000,-910.75,0.0001452,2]
[338495630,1726703450010,-948.17,0.0001452,2]
[338495631,1726703450019,-1056.22,0.0001452,2]
[338495632,1726703450028,-638.11,0.0001452,2]
[338495633,1726703450039,-686.24,0.0001452,2]
[338495634,1726703450048,-344.24039881,0.0001452,2]
[338495635,1726703450057,-500.0,0.0001452,2]
[338495636,1726703450067,-1387.99,0.0001452,2]
[338495637,1726703450077,-3946.92,0.0001452,2]
[338495638,1726703450086,-1200.89,0.0001452,2]
[338495639,1726703450096,-500.0,0.0001452,2]
[338495640,1726703450106,-500.0,0.0001452,2]
[338495641,1726703450116,-482.43323823,0.0001452,2]
[338495642,1726703450125,-1054.44,0.0001452,2]
[338495643,1726703450135,-500.0,0.0001452,2]
[338495644,1726703450144,-2366.78,0.0001452,2]
[338495645,1726703450156,-500.0,0.0001452,2]
[338495646,1726703450166,-500.0,0.0001452,2]
[338495647,1726703450175,-400.86719562,0.0001452,2]
[338495648,1726703450185,-458.27917703,0.0001452,2]
[338495649,1726703450194,-753.72,0.0001452,2]
[338495650,1726703450205,-500.0,0.0001452,2]
[338495651,1726703450214,-996.47,0.0001452,2]
[338495652,1726703450223,-934.09,0.0001452,2]
[338495653,1726703450234,-1232.89,0.0001452,2]
[338495654,1726703450243,-4027.81,0.0001452,2]
[338495655,1726703450253,-817.93,0.0001452,2]
[338495656,1726703450263,-500.0,0.0001452,2]
[338495657,1726703450272,-500.0,0.0001452,2]
[338495658,1726703450281,-500.0,0.0001452,2]
[338495659,1726703450291,-1212.52,0.0001452,2]
[338495660,1726703450301,-361.43876524,0.0001452,2]
[338495661,1726703450310,-500.0,0.0001452,2]
[338495662,1726703450321,-794.29,0.0001452,2]
[338495663,1726703450337,-500.0,0.0001452,2]
[338495664,1726703450346,-500.0,0.0001452,2]
[338495665,1726703450356,-1375.43,0.0001452,2]
[338495666,1726703450365,-1976.83,0.0001452,2]
[338495667,1726703450375,-1478.58,0.0001452,2]
[338495668,1726703450384,-500.0,0.0001452,2]
[338495669,1726703450394,-500.0,0.0001452,2]
[338495670,1726703450404,-918.74,0.0001452,2]
[338495671,1726703450413,-500.0,0.0001452,2]
[338495672,1726703450422,-500.0,0.0001452,2]
[338495673,1726703450432,-712.27,0.0001452,2]
[338495674,1726703450441,-1133.42,0.0001452,2]
[338495675,1726703450451,-500.0,0.0001452,2]
[338495676,1726703450460,-500.0,0.0001452,2]
[338495677,1726703450469,-500.0,0.0001452,2]
[338495678,1726703450478,-2764.65,0.0001452,2]
[338495679,1726703450488,-2714.96,0.0001452,2]
[338495680,1726703450498,-820.98,0.0001452,2]
[338495681,1726703450507,-500.0,0.0001452,2]
[338495682,1726703450517,-209.59407807,0.0001452,2]
[338495683,1726703450527,-1664.89,0.0001452,2]
[338495684,1726703450537,-500.0,0.0001452,2]
[338495685,1726703450546,-500.0,0.0001452,2]
[338495686,1726703450556,-500.0,0.0001452,2]
[338495687,1726703450567,-500.0,0.0001452,2]
[338495688,1726703450577,-500.0,0.0001452,2]
[338495689,1726703450587,-534.0,0.0001452,2]
[338495690,1726703450597,-1000.86,0.0001452,2]
[338495691,1726703450607,-500.0,0.0001452,2]
[338495692,1726703450617,-500.0,0.0001452,2]
[338495693,1726703450626,-500.0,0.0001452,2]
[338495694,1726703450636,-500.0,0.0001452,2]
[338495695,1726703450645,-2484.6,0.0001452,2]
[338495696,1726703450655,-987.08,0.0001452,2]
[338495697,1726703450665,-656.97,0.0001452,2]
[338495698,1726703450675,-610.31300952,0.0001452,2]
[338495699,1726703450685,-1519.92,0.0001452,2]
[338495700,1726703450694,-500.0,0.0001452,2]
[338495701,1726703450704,-500.0,0.0001452,2]
[338495702,1726703450714,-7046.39,0.0001452,2]
[338495703,1726703450723,-987.98,0.0001452,2]
[338495704,1726703450733,-500.0,0.0001452,2]
[338495705,1726703450742,-774.2,0.0001452,2]
[338495706,1726703450752,-732.59,0.0001452,2]
[338495707,1726703450762,-638.69,0.0001452,2]
[338495708,1726703450771,-500.0,0.0001452,2]
[338495709,1726703450781,-1307.97,0.0001452,2]
[338495710,1726703450790,-500.0,0.0001452,2]
[338495711,1726703450800,-520.05,0.0001452,2]
[338495712,1726703450810,-688.49,0.0001452,2]
[338495713,1726703450821,-500.0,0.0001452,2]
[338495714,1726703450831,-500.0,0.0001452,2]
[338495715,1726703450841,-500.0,0.0001452,2]
[338495716,1726703450851,-507.91,0.0001452,2]
[338495717,1726703450861,-1056.22,0.0001452,2]
[338495718,1726703450870,-1137.71,0.0001452,2]
[338495719,1726703450880,-500.0,0.0001452,2]
[338495720,1726703450889,-500.0,0.0001452,2]
[338495721,1726703450899,-500.0,0.0001452,2]
[338495722,1726703450908,-1662.08,0.0001452,2]
[338495723,1726703450918,-1238.87,0.0001452,2]
[338495724,1726703450928,-983.84,0.0001452,2]
[338495725,1726703450937,-1251.26,0.0001452,2]
[338495726,1726703450947,-500.0,0.0001452,2]
[338495727,1726703450956,-598.81,0.0001452,2]
[338495728,1726703450966,-500.0,0.0001452,2]
[338495729,1726703450976,-500.0,0.0001452,2]
[338495730,1726703450985,-524.59,0.0001452,2]
[338495731,1726703450995,-1154.07,0.0001452,2]
[338495732,1726703451004,-500.0,0.0001452,2]
[338495733,1726703451014,-919.27,0.0001452,2]
[338495734,1726703451024,-1873.2,0.0001452,2]
[338495735,1726703451033,-500.0,0.0001452,2]
[338495736,1726703451043,-500.0,0.0001452,2]
[338495737,1726703451053,-500.0,0.0001452,2]
[338495738,1726703451064,-1632.42,0.0001452,2]
[338495739,1726703451075,-500.0,0.0001452,2]
[338495740,1726703451085,-1655.8,0.0001452,2]
[338495741,1726703451095,-500.0,0.0001452,2]
[338495742,1726703451104,-500.0,0.0001452,2]
[338495743,1726703451114,-534.6,0.0001452,2]
[338495744,1726703451124,-1647.16,0.0001452,2]
[338495745,1726703451133,-500.0,0.0001452,2]
[338495746,1726703451143,-500.0,0.0001452,2]
[338495747,1726703451155,-500.0,0.0001452,2]
[338495748,1726703451165,-500.0,0.0001452,2]
[338495749,1726703451175,-500.0,0.0001452,2]
[338495750,1726703451185,-2157.32,0.0001452,2]
[338495751,1726703451196,-500.0,0.0001452,2]
[338495752,1726703451207,-1004.39,0.0001452,2]
[338495753,1726703451217,-1001.51,0.0001452,2]
[338495754,1726703451228,-751.98,0.0001452,2]
[338495755,1726703451238,-553.75,0.0001452,2]
[338495756,1726703451247,-500.0,0.0001452,2]
[338495757,1726703451257,-258.0440726,0.0001452,2]
[338495758,1726703451267,-500.0,0.0001452,2]
[338495759,1726703451276,-872.43,0.0001452,2]
[338495760,1726703451286,-1056.88,0.0001452,2]
[338495761,1726703451295,-500.0,0.0001452,2]
[338495762,1726703451306,-500.0,0.0001452,2]
[338495763,1726703451316,-500.0,0.0001452,2]
[338495764,1726703451328,-1041.52,0.0001452,2]
[338495765,1726703451337,-500.0,0.0001452,2]
[338495766,1726703451347,-520.48,0.0001452,2]
[338495767,1726703451357,-500.0,0.0001452,2]
[338495768,1726703451366,-500.0,0.0001452,2]
[338495769,1726703451376,-500.0,0.0001452,2]
[338495770,1726703451385,-500.0,0.0001452,2]
[338495771,1726703451395,-500.0,0.0001452,2]
[338495772,1726703451404,-413.35920504,0.0001452,2]
[338495773,1726703451414,-500.0,0.0001452,2]
[338495774,1726703451425,-500.0,0.0001452,2]
[338495775,1726703451435,-7317.14,0.0001452,2]
[338495776,1726703451444,-500.0,0.0001452,2]
[338495777,1726703451454,-658.48,0.0001452,2]
[338495778,1726703451464,-885.15,0.0001452,2]
[338495779,1726703451473,-2145.05,0.0001452,2]
[338495780,1726703451483,-500.0,0.0001452,2]
[338495781,1726703451493,-630.74,0.0001452,2]
[338495782,1726703451503,-500.0,0.0001452,2]
[338495783,1726703451512,-500.0,0.0001452,2]
[338495784,1726703451521,-568.34,0.0001452,2]
[338495785,1726703451531,-500.0,0.0001452,2]
[338495786,1726703451540,-7518.34,0.0001452,2]
[338495787,1726703451551,-576.48,0.0001452,2]
[338495788,1726703451560,-500.0,0.0001452,2]
[338495789,1726703451570,-500.0,0.0001452,2]
[338495790,1726703451580,-500.0,0.0001452,2]
[338495791,1726703451589,-1459.89,0.0001452,2]
[338495792,1726703451599,-3176.94,0.0001452,2]
[338495793,1726703451608,-921.27,0.0001452,2]
[338495794,1726703451617,-500.0,0.0001452,2]
[338495795,1726703451626,-514.5,0.0001452,2]
[338495796,1726703451636,-500.0,0.0001452,2]
[338495797,1726703451654,-1401.94,0.0001452,2]
[338495798,1726703451665,-500.0,0.0001452,2]
[338495799,1726703451674,-500.0,0.0001452,2]
[338495800,1726703451683,-1196.82,0.0001452,2]
[338495801,1726703451693,-2594.37,0.0001452,2]
[338495802,1726703451702,-602.0378785,0.0001452,2]
[338495803,1726703451755,-392.18531531,0.0001452,2]
[338495804,1726703451767,-1708.05680619,0.0001452,2]
[338495805,1726703451776,-500.0,0.0001452,2]
[338495806,1726703451786,-2209.46836376,0.0001452,2]
[338495807,1726703451799,-615.47163624,0.0001452,2]
[338495808,1726703451809,-292.02836376,0.0001452,2]
[338495809,1726703451822,-207.97163624,0.0001452,2]
[338495810,1726703451832,-880.57,0.0001452,2]
[338495811,1726703451844,-663.78,0.0001452,2]
[338495812,1726703451855,-214.37344104,0.0001452,2]
[338495813,1726703451864,-1181.62,0.0001452,2]
[338495814,1726703451874,-466.16492272,0.0001452,2]
[338495815,1726703452976,-33.83507728,0.0001452,2]
[338495816,1726703452986,-500.0,0.0001452,2]
[338495817,1726703452995,-21.16492272,0.0001452,2]
[338495818,1726703453015,-478.83507728,0.0001452,2]
[338495819,1726703453024,-1395.51,0.0001452,2]
[338495820,1726703453034,-500.0,0.0001452,2]
[338495821,1726703453043,-500.0,0.0001452,2]
[338495822,1726703453052,-1983.24,0.0001452,2]
[338495823,1726703453061,-1683.55,0.0001452,2]
[338495824,1726703453071,-2138.13,0.0001452,2]
[338495825,1726703453088,-1953.61,0.0001452,2]
[338495826,1726703453097,-500.0,0.0001452,2]
[338495827,1726703453106,-1290.23,0.0001452,2]
[338495828,1726703453115,-793.82,0.0001452,2]
[338495829,1726703453124,-5328.19,0.0001452,2]
[338495830,1726703453133,-500.0,0.0001452,2]
[338495831,1726703453142,-500.0,0.0001452,2]
[338495832,1726703453152,-500.0,0.0001452,2]
[338495833,1726703453163,-500.0,0.0001452,2]
[338495834,1726703453173,-955.0,0.0001452,2]
[338495835,1726703453182,-500.0,0.0001452,2]
[338495836,1726703453191,-1114.94,0.0001452,2]
[338495837,1726703453201,-500.0,0.0001452,2]
[338495838,1726703453210,-580.14,0.0001452,2]
[338495839,1726703453219,-3358.72,0.0001452,2]
[338495840,1726703453230,-1994.29,0.0001452,2]
[338495841,1726703453239,-500.0,0.0001452,2]
[338495842,1726703453248,-500.0,0.0001452,2]
[338495843,1726703453257,-5079.99,0.0001452,2]
[338495844,1726703453266,-3752.33,0.0001452,2]